bitfinex/quotes_ETHUSD_20241030
["timestamp","ask_amount","ask_price","bid_price","bid_amount"]
[1730280923257,6.89572,2684.1,2683.7,1.3231]
[1730280923554,3.72585,2684.0,2683.7,1.3231]
[1730280924234,7.45171,2684.0,2683.7,1.3231]
[1730280924441,3.72585,2684.0,2683.7,1.3231]
[1730280926152,3.72568,2684.1,2683.7,1.3231]
[1730280926371,3.72564,2684.1,2683.7,1.77739689]
[1730280926551,3.7258,2684.0,2683.7,1.77739689]
[1730280926756,3.72558,2684.2,2683.7,1.77739689]
[1730280926981,6.7425616,2684.5,2684.2,0.55]
[1730280926982,0.0223616,2684.5,2684.2,0.55]
[1730280927182,3.72524,2684.4,2684.3,0.3727]
[1730280927484,4.5796916,2684.5,2683.9,3.7774]
[1730280927773,3.72578,2684.0,2683.9,1.3274]
[1730280927977,3.72578,2684.0,2683.9,0.7774]
[1730280928181,3.72578,2684.0,2683.9,1.3274]
[1730280928810,3.72558,2684.2,2683.9,1.3274]
[1730280929074,3.72547,2684.3,2684.1,3.2198689]
[1730280929275,3.72547,2684.3,2684.1,3.27575081]
[1730280929844,3.72538,2684.3,2684.1,3.27575081]
[1730280930074,3.72538,2684.3,2684.1,3.2198689]
[1730280930444,3.72539,2684.3,2684.1,3.2198689]
[1730280933255,3.72523,2684.4,2684.2,0.55]
[1730280935997,0.0223616,2684.5,2684.3,0.8063]
[1730280936297,3.7474616,2684.5,2684.3,0.8063]
[1730280937804,3.72522,2684.4,2684.3,0.8063]
[1730280938108,3.72522,2684.4,2684.2,0.55]
[1730280938604,0.0223616,2684.5,2684.1,0.8326]
[1730280938805,3.7255,2684.2,2684.0,0.05588492]
[1730280939007,3.72564,2684.1,2684.0,1.4952366]
[1730280941871,7.4511,2684.2,2684.0,1.4952366]
[1730280942309,3.72564,2684.1,2684.0,1.4952366]
[1730280942479,3.7255,2684.2,2684.0,1.4952366]
[1730280942683,3.7254,2684.3,2684.1,0.55]
[1730280942880,3.72522,2684.4,2684.2,1.43935168]
[1730280943078,3.72536,2684.3,2684.2,1.43935168]
[1730280945887,3.72536,2684.3,2684.2,2.24645168]
[1730280946803,3.72536,2684.3,2684.2,1.43935168]
[1730280948936,3.72536,2684.3,2684.1,0.55]
[1730280950350,3.7474416,2684.5,2684.2,1.43935168]
[1730280950513,0.0223616,2684.5,2684.2,1.43935168]
[1730280950944,3.7474516,2684.5,2684.2,1.43935168]
[1730280951253,0.0223616,2684.5,2684.4,1.43935168]
[1730280951403,0.0223616,2684.5,2684.3,1.1446]
[1730280952312,0.0223616,2684.5,2684.4,1.98935168]
[1730280952605,0.0223616,2684.5,2684.4,0.55]
[1730280953349,3.7474416,2684.5,2684.2,0.65233036]
[1730280953550,0.0223616,2684.5,2684.1,2.19615168]
[1730280953717,3.7255,2684.2,2683.9,2.19615168]
[1730280953935,3.72529,2684.4,2684.1,1.43935168]
[1730280954665,3.72546,2684.3,2684.1,1.43935168]
[1730280955023,0.7807,2684.2,2683.8,0.3727]
[1730280955223,0.7807,2684.2,2683.7,0.38853411]
[1730280955224,4.50676,2683.8,2683.7,0.38853411]
[1730280955471,3.72715,2683.1,2682.8,1.43935168]
[1730280955650,3.72715,2683.1,2683.0,1.43935168]
[1730280956238,3.72658,2683.5,2683.0,2.22015168]
[1730280956533,3.72634,2683.6,2683.1,3.21805939]
[1730280956752,3.72634,2683.6,2683.1,3.47895464]
[1730280957626,3.72648,2683.5,2683.2,0.55]
[1730280957831,3.72648,2683.5,2683.2,1.06824546]
[1730280958578,3.72648,2683.5,2683.2,1.06824546]
[1730280959471,3.72627,2683.7,2683.2,1.06824546]
[1730280959673,3.72578,2684.0,2683.4,3.21805939]
[1730280959961,3.72578,2684.0,2683.5,0.55]
[1730280960766,3.72578,2684.0,2683.5,0.9227]
[1730280961170,3.72594,2683.9,2683.5,0.9227]
[1730280961369,3.72581,2684.0,2683.7,0.55]
[1730280961680,3.72606,2683.8,2683.7,0.55]
[1730280961886,3.72606,2683.8,2683.5,0.55]
[1730280962046,3.72606,2683.8,2683.5,1.08500794]
[1730280964085,3.72633,2683.6,2683.2,3.0]
[1730280964292,0.782,2683.7,2683.1,4.03805939]
[1730280964293,3.72649,2683.5,2683.1,0.82]
[1730280964579,7.45308,2683.5,2683.1,0.82]
[1730280964751,3.72649,2683.5,2683.1,1.24088009]
[1730280964956,3.72626,2683.7,2683.2,3.0]
[1730280965274,3.72626,2683.7,2683.3,0.07452542]
[1730280965443,3.72596,2683.9,2683.4,0.30745254]
[1730280965647,3.72614,2683.8,2683.4,0.30745254]
[1730280965885,3.72614,2683.8,2683.5,0.55]
[1730280966848,3.72624,2683.7,2683.5,0.55]
[1730280967081,3.72624,2683.7,2683.6,0.60589331]
[1730280967384,3.72674,2683.4,2683.2,3.3727]
[1730280967559,3.72675,2683.3,2683.2,0.3727]
[1730280968167,3.72689,2683.2,2682.9,3.0]
[1730280968373,7.45386,2683.2,2682.9,3.0]
[1730280968702,7.45386,2683.2,2682.9,3.3727]
[1730280969017,3.72703,2683.1,2682.9,3.0]
[1730280969187,3.72703,2683.1,2682.7,0.3727]
[1730280969706,3.72703,2683.1,2682.6,3.7594]
[1730280969861,3.7273,2683.0,2682.6,3.7594]
[1730280970202,3.7273,2683.0,2682.6,4.84632373]
[1730280970356,3.72736,2682.9,2682.7,0.3727]
[1730280971762,0.8243,2683.6,2682.8,3.76805939]
[1730280971763,3.72694,2683.2,2682.8,3.76805939]
[1730280971959,3.72665,2683.4,2682.9,3.3727]
[1730280972258,3.72664,2683.4,2683.0,1.3326]
[1730280972465,3.72642,2683.6,2683.0,1.3326]
[1730280972817,3.72642,2683.6,2683.2,3.55]
[1730280973118,7.45284,2683.6,2683.2,3.55]
[1730280973318,3.72642,2683.6,2683.2,3.55]
[1730280973616,3.72642,2683.6,2683.2,3.9227]
[1730280974179,3.72657,2683.5,2683.2,3.55]
[1730280974492,0.7505,2683.8,2683.2,3.55]
[1730280974493,4.47665,2683.8,2683.2,3.55]
[1730280974693,3.72636,2683.6,2683.2,4.35211894]
[1730280975322,3.72636,2683.6,2683.2,4.72481894]
[1730280976335,3.72636,2683.6,2683.2,4.35211894]
[1730280976480,3.72649,2683.5,2683.2,4.35211894]
[1730280976884,3.72636,2683.6,2683.2,4.35211894]
[1730280977286,0.7505,2683.8,2682.8,3.7629]
[1730280977612,3.72661,2683.4,2682.8,3.7629]
[1730280977810,3.72661,2683.4,2682.9,0.69809594]
[1730280977984,3.72685,2683.3,2682.9,0.69809594]
[1730280978386,3.72685,2683.3,2683.1,0.55]
[1730280978725,3.72661,2683.4,2683.1,0.55]
[1730280978921,7.45333,2683.4,2683.1,0.55]
[1730280979085,3.72661,2683.4,2683.1,0.55]
[1730280979694,7.45331,2683.4,2683.1,0.55]
[1730280980005,3.72661,2683.4,2683.1,0.55]
[1730280980729,3.72676,2683.3,2683.1,0.55]
[1730280980921,3.72661,2683.4,2683.1,0.55]
[1730280981427,3.72686,2683.3,2683.1,0.55]
[1730280981725,3.72661,2683.4,2683.1,0.55]
[1730280982720,3.72675,2683.3,2683.1,0.55]
[1730280983231,3.72698,2683.2,2682.8,1.15189786]
[1730280983383,3.72731,2682.9,2682.8,0.38899786]
[1730280984434,4.48721,2682.9,2682.8,0.38899786]
[1730280984593,5.308649,2682.9,2682.8,0.38899786]
[1730280987486,3.72814,2682.3,2682.2,0.05590418]
[1730280987704,3.72814,2682.3,2682.2,0.44519243]
[1730280988124,4.54761,2682.4,2682.2,0.44519243]
[1730280988424,3.72814,2682.3,2682.2,0.44519243]
[1730280988733,3.72814,2682.3,2682.2,0.38928825]
[1730280989228,3.72788,2682.5,2682.2,0.44519817]
[1730280989528,3.72766,2682.7,2682.2,0.44519817]
[1730280989734,3.72758,2682.7,2682.2,0.44519817]
[1730280990231,3.72773,2682.6,2682.2,0.44519817]
[1730280993001,3.7276,2682.7,2682.3,0.55]
[1730280995940,3.72783,2682.6,2682.3,0.55]
[1730280996238,3.7276,2682.7,2682.3,0.55]
[1730280996398,7.45532,2682.7,2682.3,0.55]
[1730280997029,3.7276,2682.7,2682.3,0.55]
[1730280997237,3.72809,2682.4,2682.2,1.25539817]
[1730280997538,3.72814,2682.3,2682.2,0.38928825]
[1730280997694,0.7668,2682.0,2681.3,0.7978]
[1730280997918,3.72919,2681.6,2681.3,0.7978]
[1730280998566,0.7668,2682.0,2681.2,0.38883413]
[1730280998857,3.72953,2681.3,2681.2,0.38883413]
[1730280999158,3.72953,2681.3,2680.2,0.01]
[1730280999159,3.73015,2680.9,2680.4,1.1318]
[1730280999472,0.7809,2681.4,2679.9,3.7314]
[1730280999473,3.72995,2681.0,2680.8,0.3894635]
[1730280999620,3.72995,2681.0,2680.2,0.7591]
[1730280999955,3.73021,2680.9,2680.5,0.38950237]
[1730281000171,3.7304,2680.7,2680.5,0.38950237]
[1730281000367,0.7851,2680.8,2680.5,0.38950237]
[1730281000655,3.73007,2681.0,2680.5,0.38950237]
[1730281000866,5.898,2681.6,2680.8,0.7892]
[1730281000867,3.72955,2681.3,2680.8,0.7892]
[1730281001219,4.51452,2681.4,2680.8,1.1619]
[1730281001421,4.51452,2681.4,2680.9,0.43799594]
[1730281002246,3.72942,2681.4,2680.9,0.43799594]
[1730281002446,3.7292,2681.6,2681.0,0.55]
[1730281002651,3.72927,2681.5,2681.0,0.55]
[1730281003732,0.7894,2681.7,2681.0,0.55]
[1730281003927,3.72921,2681.6,2681.0,0.55]
[1730281004122,3.72926,2681.5,2681.0,0.55]
[1730281004552,7.45844,2681.6,2681.0,0.55]
[1730281004738,3.72927,2681.5,2681.0,0.55]
[1730281006183,3.72921,2681.6,2681.0,0.55]
[1730281006386,0.796,2681.1,2680.5,0.38950237]
[1730281006753,3.73011,2680.9,2680.5,0.38950237]
[1730281008750,7.45927,2681.3,2680.6,0.55]
[1730281009107,3.72962,2681.3,2680.6,0.55]
[1730281009240,7.45929,2681.3,2680.6,0.55]
[1730281009435,3.72962,2681.3,2680.6,0.55]
[1730281009873,7.45925,2681.3,2680.6,0.55]
[1730281010069,3.7297,2681.2,2680.6,0.96575618]
[1730281011381,3.72982,2681.1,2680.6,0.96575618]
[1730281011586,3.72982,2681.1,2680.6,0.55]
[1730281014118,3.7293,2681.5,2680.8,0.55]
[1730281015267,4.55057,2681.7,2680.8,0.55]
[1730281015492,3.72932,2681.5,2680.8,0.55]
[1730281015679,3.72932,2681.5,2680.8,1.41947613]
[1730281015988,7.45869,2681.5,2680.8,1.41947613]
[1730281016188,3.72939,2681.4,2680.8,1.41947613]
[1730281016891,3.72939,2681.4,2680.8,4.41947613]
[1730281017193,3.72939,2681.4,2681.0,0.55]
[1730281017686,3.72932,2681.5,2681.0,0.55]
[1730281018865,7.45867,2681.5,2681.0,0.55]
[1730281019161,3.72932,2681.5,2681.0,0.55]
[1730281020086,7.45866,2681.5,2681.0,0.55]
[1730281020479,3.72932,2681.5,2681.0,0.55]
[1730281021108,3.72941,2681.4,2681.0,0.55]
[1730281021283,3.72953,2681.3,2681.0,0.55]
[1730281021481,3.72946,2681.4,2681.0,0.55]
[1730281022413,3.72939,2681.4,2681.0,0.55]
[1730281023285,3.72932,2681.5,2681.0,0.55]
[1730281023487,7.4587,2681.5,2681.0,0.55]
[1730281023802,3.72943,2681.4,2681.0,0.55]
[1730281024406,3.72954,2681.3,2681.0,0.55]
[1730281024609,3.72954,2681.3,2680.7,0.8073]
[1730281024903,7.4598,2681.1,2680.7,0.3727]
[1730281025283,3.72988,2681.1,2680.7,0.3727]
[1730281027105,3.7301,2680.9,2680.7,0.3727]
[1730281027308,3.72989,2681.1,2680.7,0.3727]
[1730281028102,0.7738,2681.2,2680.7,0.3727]
[1730281028103,3.72974,2681.2,2680.7,0.3727]
[1730281028620,3.72974,2681.2,2680.7,3.59075939]
[1730281030818,3.72953,2681.3,2680.7,3.59075939]
[1730281030981,3.72983,2681.1,2680.7,3.59075939]
[1730281031185,3.72997,2681.0,2680.7,0.3727]
[1730281031380,3.73009,2680.9,2680.6,0.38949246]
[1730281032382,3.73009,2680.9,2680.6,0.76219246]
[1730281032691,3.73009,2680.9,2680.6,0.38949246]
[1730281033494,3.73009,2680.9,2680.6,0.76219246]
[1730281033902,3.73009,2680.9,2680.6,0.38949246]
[1730281034205,3.73026,2680.8,2680.6,0.38949246]
[1730281034718,3.73026,2680.8,2680.5,1.1427]
[1730281035791,3.73009,2680.9,2680.5,1.1427]
[1730281040038,7.46029,2680.9,2680.5,1.1427]
[1730281040330,3.73009,2680.9,2680.5,1.1427]
[1730281040742,7.45981,2681.1,2680.5,1.1427]
[1730281041047,3.72999,2681.0,2680.5,1.1427]
[1730281041550,7.46006,2681.0,2680.5,1.1427]
[1730281041697,4.53957,2681.2,2680.5,1.1427]
[1730281041902,3.73001,2681.0,2680.5,1.61772851]
[1730281042232,3.73009,2680.9,2680.5,1.1427]
[1730281042541,3.73026,2680.8,2680.5,1.1427]
[1730281042952,3.7305,2680.6,2680.5,0.3727]
[1730281043112,3.7305,2680.6,2680.4,0.3895257]
[1730281043314,3.7305,2680.7,2680.4,0.3895257]
[1730281043514,3.73117,2680.2,2680.0,0.42865892]
[1730281043744,3.73073,2680.5,2680.0,0.05595892]
[1730281044726,3.73064,2680.6,2680.0,0.05595892]
[1730281045030,3.73016,2680.9,2680.5,3.21805939]
[1730281045229,3.73016,2680.9,2680.6,0.7972]
[1730281047662,3.73016,2680.9,2680.3,3.3727]
[1730281047955,3.73046,2680.7,2680.2,0.7972]
[1730281048132,3.73081,2680.4,2680.2,0.7972]
[1730281048462,3.73081,2680.4,2680.0,0.82375892]
[1730281048759,3.73089,2680.4,2680.1,0.3727]
[1730281048919,3.73089,2680.4,2680.0,0.82375892]
[1730281049749,3.73089,2680.4,2680.0,1.19645892]
[1730281050257,3.73087,2680.4,2680.0,1.19645892]
[1730281051058,3.73058,2680.6,2680.0,1.19645892]
[1730281051059,7.46121,2680.6,2680.0,1.19645892]
[1730281051236,3.73064,2680.5,2680.0,1.19645892]
[1730281051560,3.73058,2680.6,2680.0,4.67686924]
[1730281051943,3.73067,2680.5,2680.0,4.67686924]
[1730281054055,3.73032,2680.8,2680.1,0.55]
[1730281054263,3.17,2680.9,2680.3,3.55]
[1730281054264,6.90009,2680.9,2680.3,3.55]
[1730281054447,6.90009,2680.9,2680.3,3.9227]
[1730281054629,6.90009,2680.9,2680.4,0.8277]
[1730281054826,3.17,2680.9,2680.4,1.2004]
[1730281055025,3.17,2680.9,2680.5,3.59075939]
[1730281059557,6.90009,2680.9,2680.5,3.59075939]
[1730281061250,3.73026,2680.8,2680.5,0.3727]
[1730281061846,6.90009,2680.9,2680.5,0.3727]
[1730281066586,3.73009,2680.9,2680.5,0.3727]
[1730281067666,7.46028,2680.9,2680.5,0.3727]
[1730281067973,3.73009,2680.9,2680.5,0.3727]
[1730281069291,3.73023,2680.8,2680.5,0.3727]
[1730281070656,3.73023,2680.8,2680.3,3.76272737]
[1730281070657,3.73044,2680.7,2680.3,3.76272737]
[1730281070855,3.73053,2680.6,2680.3,0.76272737]
[1730281074280,3.73031,2680.8,2680.3,0.76272737]
[1730281074475,3.73037,2680.7,2680.3,0.76272737]
[1730281075073,3.73054,2680.6,2680.3,0.76272737]
[1730281077593,3.7305,2680.6,2680.3,0.76272737]
[1730281077894,0.373037,2680.7,2680.1,0.3732]
[1730281077895,3.73092,2680.3,2680.1,0.3732]
[1730281078592,3.73106,2680.2,2680.0,0.05595892]
[1730281079597,3.73106,2680.2,2680.0,1.49979848]
[1730281079793,3.73079,2680.4,2680.0,1.49979848]
[1730281079965,3.73092,2680.3,2680.0,1.49979848]
[1730281082797,3.73113,2680.2,2680.0,1.49979848]
[1730281084097,4.184119,2680.4,2680.0,1.49979848]
[1730281084282,3.73092,2680.3,2680.0,1.49979848]
[1730281084457,3.73045,2680.7,2680.3,0.8217]
[1730281084658,3.73033,2680.8,2680.5,1.44383956]
[1730281084901,4.178513,2680.8,2680.5,1.44383956]
[1730281085075,4.178483,2680.8,2680.5,1.44383956]
[1730281085583,3.73038,2680.7,2680.5,1.44383956]
[1730281086295,0.448183,2680.8,2680.5,1.44383956]
[1730281086482,3.73031,2680.8,2680.3,4.04656383]
[1730281087294,4.48154,2681.0,2680.4,0.55]
[1730281087494,7.46012,2681.0,2680.4,0.55]
[1730281087664,4.558722,2681.0,2680.4,0.55]
[1730281087863,8.288762,2681.0,2680.4,0.55]
[1730281088597,4.558722,2681.0,2680.4,0.55]
[1730281088898,3.7301,2680.9,2680.4,0.55]
[1730281091562,3.73009,2680.9,2680.4,0.55]
[1730281092559,4.558722,2681.0,2680.4,0.55]
[1730281092771,3.73016,2680.9,2680.4,0.55]
[1730281093007,3.72989,2681.1,2680.7,3.22486383]
[1730281093170,4.55645,2681.2,2680.7,3.22486383]
[1730281093171,3.72974,2681.2,2680.7,3.22486383]
[1730281093374,3.72974,2681.2,2680.8,0.7632]
[1730281093559,11.218,2681.3,2680.8,0.7632]
[1730281093560,3.17,2681.3,2681.1,3.22486383]
[1730281093759,3.17,2681.3,2681.2,1.1364]
[1730281093965,3.72919,2681.6,2681.2,1.1364]
[1730281094378,3.72883,2681.8,2681.3,3.22486383]
[1730281094587,3.72905,2681.7,2681.3,3.22486383]
[1730281096091,3.72883,2681.8,2681.4,0.8237]
[1730281096412,3.72874,2681.9,2681.4,0.8237]
[1730281097315,3.72864,2682.0,2681.6,3.22486383]
[1730281097667,3.72869,2681.9,2681.6,3.22486383]
[1730281098578,3.72864,2682.0,2681.6,3.22486383]
[1730281098913,3.72876,2681.9,2681.6,3.22486383]
[1730281101100,3.72864,2682.0,2681.6,3.22486383]
[1730281101312,3.72886,2681.8,2681.6,3.22486383]
[1730281101602,3.72886,2681.8,2681.4,0.8237]
[1730281103289,7.45733,2682.0,2681.4,1.60152238]
[1730281103625,3.7287,2681.9,2681.4,1.60152238]
[1730281104528,3.72864,2682.0,2681.4,0.77782238]
[1730281104815,3.72778,2682.6,2682.0,0.7804]
[1730281105018,3.72766,2682.7,2682.1,0.55]
[1730281105182,3.72766,2682.7,2682.2,0.8255]
[1730281105384,4.54444,2682.8,2682.3,0.55]
[1730281105725,3.72754,2682.8,2682.3,0.55]
[1730281106237,3.17,2682.9,2682.3,0.55]
[1730281106521,3.17,2682.9,2682.5,3.77486383]
[1730281106707,3.17,2682.9,2682.7,0.55]
[1730281107485,3.17,2682.9,2682.8,4.58026383]
[1730281107708,3.17,2682.9,2682.8,5.09329021]
[1730281114053,3.17,2682.9,2681.6,0.01]
[1730281114262,0.02,2683.5,2682.2,0.7725]
[1730281114263,3.72812,2682.4,2682.2,0.7725]
[1730281114418,3.72808,2682.4,2682.0,0.7646]
[1730281114843,3.72825,2682.3,2682.0,0.7646]
[1730281115942,0.7725,2682.8,2682.0,0.7646]
[1730281115943,3.72795,2682.5,2682.0,0.7646]
[1730281117229,3.72804,2682.4,2682.0,0.7646]
[1730281117809,3.72828,2682.2,2682.0,0.7646]
[1730281118955,3.72842,2682.1,2681.7,0.7628]
[1730281119158,3.72842,2682.1,2681.0,1.01075731]
[1730281119159,0.7972,2682.3,2681.5,1.20362621]
[1730281119458,3.72911,2681.6,2681.5,0.44082621]
[1730281119638,4.5543,2681.6,2681.5,0.38920136]
[1730281119839,3.72911,2681.6,2681.5,0.38920136]
[1730281120156,3.72911,2681.6,2681.0,0.8277]
[1730281120157,3.72954,2681.3,2681.0,0.8277]
[1730281120367,3.72954,2681.3,2680.9,3.22486383]
[1730281120521,3.72967,2681.2,2680.9,3.22486383]
[1730281120859,7.45916,2681.3,2680.9,3.22486383]
[1730281121064,3.72954,2681.3,2680.9,3.22486383]
[1730281121219,7.45916,2681.3,2680.9,3.22486383]
[1730281121420,3.72954,2681.3,2680.9,3.22486383]
[1730281121638,3.72931,2681.5,2680.9,4.04047521]
[1730281122336,3.72931,2681.5,2681.0,0.38912344]
[1730281122946,7.4587,2681.5,2681.0,0.38912344]
[1730281123333,3.72931,2681.5,2681.0,0.38912344]
[1730281123866,3.7294,2681.4,2681.0,0.38912344]
[1730281124228,3.72931,2681.5,2681.0,0.38912344]
[1730281126671,4.52284,2681.7,2681.1,0.55]
[1730281126848,8.25192,2681.7,2681.1,0.55]
[1730281127350,4.52284,2681.7,2681.1,0.55]
[1730281127551,3.72914,2681.6,2681.1,0.55]
[1730281128389,3.72914,2681.6,2681.0,0.38912344]
[1730281128390,3.72947,2681.4,2681.0,0.38912344]
[1730281128587,4.4825,2681.2,2681.0,0.38912344]
[1730281128751,3.72981,2681.1,2681.0,0.38912344]
[1730281130076,4.4825,2681.2,2680.3,4.04976383]
[1730281130077,3.73016,2680.9,2680.3,4.04976383]
[1730281130289,7.46038,2680.9,2680.3,4.04976383]
[1730281130588,3.73024,2680.8,2680.3,5.20095121]
[1730281130792,7.46033,2680.9,2680.3,5.20095121]
[1730281131087,3.73016,2680.9,2680.3,5.20095121]
[1730281131965,3.73016,2680.9,2680.4,0.38905048]
[1730281132297,3.7299,2681.1,2680.6,3.22486383]
[1730281132489,3.7299,2681.1,2680.7,0.7878]
[1730281132995,7.45872,2681.5,2680.9,3.22486383]
[1730281133197,3.72918,2681.6,2681.0,0.55]
[1730281133394,3.72898,2681.7,2681.2,3.22486383]
[1730281134400,5.88877,2681.9,2681.3,0.55]
[1730281134575,5.88877,2681.9,2681.5,3.22486383]
[1730281134784,2.16,2681.9,2681.6,0.7878]
[1730281135357,3.72848,2682.1,2681.6,0.7878]
[1730281136461,6.89799,2682.5,2681.9,0.55]
[1730281136659,3.72809,2682.4,2681.9,0.55]
[1730281136938,3.72787,2682.5,2682.0,0.8165]
[1730281137399,3.72786,2682.5,2682.1,0.55]
[1730281137960,3.72774,2682.6,2682.1,0.55]
[1730281140504,3.7274,2682.9,2682.3,0.55]
[1730281140731,3.72745,2682.8,2682.3,0.55]
[1730281141013,3.72745,2682.8,2682.2,4.27827]
[1730281141208,3.72712,2683.1,2682.5,3.0]
[1730281141411,3.72712,2683.1,2682.6,0.55]
[1730281141612,3.72734,2682.9,2682.6,0.55]
[1730281141818,3.72718,2683.0,2682.6,0.55]
[1730281142815,3.72731,2682.9,2682.6,0.55]
[1730281144316,3.72763,2682.7,2682.3,0.8003]
[1730281144471,7.45583,2682.5,2682.0,0.8305]
[1730281144678,8.201413,2682.5,2682.0,0.8305]
[1730281144879,7.45583,2682.5,2682.0,0.8305]
[1730281145081,3.728,2682.4,2682.0,0.8305]
[1730281145373,4.51517,2682.7,2682.0,0.8305]
[1730281145598,4.51517,2682.7,2682.1,0.55]
[1730281145872,3.72788,2682.5,2682.1,0.55]
[1730281146487,3.72823,2682.3,2682.0,0.8305]
[1730281146697,3.72827,2682.3,2682.0,0.8305]
[1730281146918,3.72842,2682.1,2682.0,0.8305]
[1730281147281,4.101262,2682.1,2682.0,0.8305]
[1730281148316,3.72842,2682.1,2682.0,0.8305]
[1730281148518,3.72808,2682.4,2682.0,0.8305]
[1730281149541,3.72779,2682.6,2682.0,0.8305]
[1730281149748,3.728,2682.4,2682.0,0.8305]
[1730281149952,3.72779,2682.6,2682.1,0.55]
[1730281150156,4.2244707,2682.6,2682.1,0.55]
[1730281150642,7.45508,2682.8,2682.1,3.22486383]
[1730281150844,3.72763,2682.7,2682.1,6.95326383]
[1730281151146,3.72751,2682.8,2682.1,4.34805121]
[1730281151366,3.72751,2682.8,2682.2,4.27825]
[1730281152343,3.72751,2682.8,2682.3,3.72812]
[1730281152539,3.72719,2683.0,2682.4,0.55]
[1730281152847,3.72719,2683.0,2682.4,4.27793]
[1730281153035,3.72719,2683.0,2682.6,0.55]
[1730281153907,3.72731,2682.9,2682.6,0.55]
[1730281154105,3.72731,2682.9,2682.5,0.55]
[1730281154462,3.72718,2683.0,2682.5,0.55]
[1730281154764,3.72718,2683.0,2682.7,0.55]
[1730281154961,7.45446,2683.0,2682.7,0.55]
[1730281155127,3.72718,2683.0,2682.7,0.55]
[1730281155758,3.72718,2683.0,2682.4,6.95280383]
[1730281155759,0.7625,2682.8,2682.0,0.3732]
[1730281155917,3.72822,2682.3,2682.1,0.7849]
[1730281156119,4.49072,2682.3,2682.0,0.3732]
[1730281156419,4.49072,2682.3,2681.8,4.00976383]
[1730281156755,3.72844,2682.1,2681.8,4.41074021]
[1730281157438,3.72828,2682.2,2681.9,0.55]
[1730281158322,4.49072,2682.3,2681.9,0.55]
[1730281159257,3.72829,2682.2,2681.9,0.55]
[1730281160160,3.72842,2682.1,2681.9,0.55]
[1730281161120,8.21899,2682.3,2681.9,0.55]
[1730281161553,4.49072,2682.3,2681.9,0.55]
[1730281162423,3.72828,2682.2,2681.9,0.55]
[1730281173596,3.72805,2682.4,2681.8,0.7849]
[1730281173597,3.72869,2681.9,2681.8,0.7849]
[1730281173756,3.72869,2681.9,2681.6,1.52266152]
[1730281173954,0.7502,2682.1,2681.6,1.52266152]
[1730281173955,3.72885,2681.8,2681.6,1.52266152]
[1730281176166,3.72765,2682.7,2681.8,0.8294]
[1730281176381,3.72797,2682.5,2681.9,3.77486383]
[1730281176562,0.450067,2682.4,2681.9,3.77486383]
[1730281176770,3.728,2682.4,2681.9,7.50349383]
[1730281178394,3.72824,2682.3,2681.9,3.77486383]
[1730281178894,7.45649,2682.3,2681.9,3.77486383]
[1730281179256,3.72824,2682.3,2681.9,3.77486383]
[1730281179871,3.72824,2682.3,2681.9,7.50355383]
[1730281180202,3.728,2682.4,2681.9,5.31991019]
[1730281180488,3.72794,2682.5,2682.0,0.7604]
[1730281180793,3.72794,2682.5,2682.0,8.21732]
[1730281180991,3.72768,2682.7,2682.3,0.8022]
[1730281181199,10.62475,2682.9,2682.4,4.27798]
[1730281181499,3.72736,2682.9,2682.6,0.55]
[1730281185201,3.72712,2683.1,2682.6,4.2777]
[1730281186978,7.45426,2683.1,2682.6,4.2777]
[1730281187199,3.72712,2683.1,2682.6,4.2777]
[1730281187406,7.45423,2683.1,2682.6,4.2777]
[1730281187718,3.72711,2683.1,2682.6,4.2777]
[1730281188082,3.72711,2683.1,2682.7,0.7542]
[1730281190216,3.7271,2683.1,2682.7,0.7542]
[1730281191201,6.89666,2683.4,2682.9,4.2773]
[1730281191408,3.72659,2683.5,2683.1,0.7504]
[1730281191610,7.45316,2683.5,2683.1,0.7504]
[1730281192120,3.72665,2683.4,2683.1,0.7504]
[1730281192620,3.72657,2683.5,2683.1,0.7504]
[1730281193174,4.55725,2683.8,2683.2,0.55]
[1730281193378,7.45282,2683.6,2683.2,0.55]
[1730281193981,3.7264,2683.6,2683.2,0.55]
[1730281194182,3.7264,2683.6,2683.3,0.7756]
[1730281194618,3.72655,2683.5,2683.3,0.7756]
[1730281195880,3.72635,2683.6,2683.3,0.7756]
[1730281196103,3.72616,2683.8,2683.3,1.3684033]
[1730281196312,3.7258,2684.0,2683.7,3.22486383]
[1730281196514,3.7258,2684.0,2683.7,0.7711]
[1730281196878,3.726,2683.9,2683.7,0.7711]
[1730281197120,3.72606,2683.8,2683.7,0.7711]
[1730281197809,3.72596,2683.9,2683.7,0.7711]
[1730281198715,3.72606,2683.8,2683.7,0.7711]
[1730281199561,3.72668,2683.4,2683.2,1.1983]
[1730281199742,3.72697,2683.2,2682.9,0.8251]
[1730281200383,3.72678,2683.3,2682.9,0.8251]
[1730281200693,3.72652,2683.5,2682.9,7.77717383]
[1730281200895,3.72628,2683.7,2683.1,5.10452]
[1730281201128,3.72606,2683.8,2683.3,5.10424]
[1730281202421,3.72597,2683.9,2683.4,3.72661]
[1730281202735,7.45198,2683.9,2683.3,5.10424]
[1730281202887,4.54202,2684.1,2683.5,0.55]
[1730281203233,0.8163,2684.1,2683.5,0.55]
[1730281203521,3.726,2683.9,2683.5,0.55]
[1730281205514,3.72571,2684.1,2683.6,0.7782]
[1730281205714,3.72571,2684.1,2683.7,0.55]
[1730281206819,3.72571,2684.1,2683.5,2.81287156]
[1730281207031,3.72571,2684.1,2683.5,3.55816256]
[1730281207344,3.72585,2684.0,2683.5,0.745291]